bitfinex/quotes_ETHUSD_20240711
["timestamp","ask_amount","ask_price","bid_price","bid_amount"]
[1720716199528,0.156,3127.6,3127.5,15.92670123]
[1720716200528,0.156,3127.6,3127.5,18.92670123]
[1720716214819,0.156,3127.6,3127.5,22.12414123]
[1720716215014,0.156,3127.6,3127.5,22.67414123]
[1720716215321,2.4697,3129.3,3129.0,1.5]
[1720716215519,2.4697,3129.3,3128.5,3.1964]
[1720716215520,2.4697,3129.3,3128.8,1.5]
[1720716215817,1.10695845,3129.2,3128.8,1.5]
[1720716216020,1.10695845,3129.2,3128.9,0.06917461]
[1720716216323,2.4697,3129.3,3128.9,0.06917461]
[1720716216493,1.10691576,3129.2,3128.9,0.06917461]
[1720716216693,2.4697,3129.3,3128.9,0.06917461]
[1720716216992,1.3538969,3129.2,3128.6,7.48]
[1720716217188,3.3855269,3129.1,3128.7,0.06920052]
[1720716217382,1.1069269,3129.0,3128.7,0.06920052]
[1720716218931,2.2786,3129.1,3128.7,0.06920052]
[1720716219092,1.10713029,3128.9,3128.7,0.06920052]
[1720716219293,1.10713029,3128.8,3128.7,0.06920052]
[1720716221594,1.10713029,3128.8,3128.2,13.79]
[1720716221798,1.10713029,3128.7,3128.3,0.06929103]
[1720716221999,2.2786,3129.1,3128.2,1.5]
[1720716222000,1.10713029,3128.6,3128.2,1.5]
[1720716222197,1.10713029,3128.5,3128.3,0.06929103]
[1720716222536,1.10708325,3128.4,3128.1,7.48]
[1720716222679,3.0,3129.0,3128.1,7.48]
[1720716222680,3.50448325,3128.3,3128.1,7.48]
[1720716222879,1.10724431,3128.2,3128.1,7.48]
[1720716223296,1.10724431,3128.2,3127.6,21.27]
[1720716223500,1.10724431,3128.1,3127.6,21.27]
[1720716223699,1.10724431,3128.1,3127.6,1.5]
[1720716224223,1.10724431,3128.1,3127.4,1.5]
[1720716224427,2.4973,3128.0,3127.3,7.48]
[1720716224622,1.10724431,3127.9,3127.3,7.48]
[1720716225100,1.10724431,3127.9,3127.4,1.5]
[1720716225730,1.10744697,3127.8,3127.4,3.19753]
[1720716226024,1.10744697,3127.7,3127.3,7.48]
[1720716226227,1.10744697,3127.6,3127.4,1.5]
[1720716226391,2.3145,3128.4,3127.7,3.19723]
[1720716226739,2.3145,3128.4,3127.4,1.5]
[1720716226740,1.10733556,3128.3,3127.5,3.19734]
[1720716227028,1.10733556,3128.2,3127.6,4.69727]
[1720716227234,1.10733556,3128.1,3127.6,4.69727]
[1720716227412,1.10733556,3128.0,3127.6,4.69727]
[1720716227736,1.10733556,3127.9,3127.6,4.69727]
[1720716227894,1.10733556,3127.8,3127.6,4.69727]
[1720716228093,2.3145,3128.4,3127.7,3.19722]
[1720716228288,1.10727275,3128.3,3127.7,3.19722]
[1720716228492,1.10727275,3128.2,3127.7,3.19722]
[1720716228695,1.10727275,3128.3,3127.7,3.19722]
[1720716228896,2.3145,3128.4,3127.7,3.19722]
[1720716228897,1.10726704,3128.2,3127.7,3.19722]
[1720716229130,1.10726704,3128.1,3127.7,3.19722]
[1720716229339,1.10726704,3128.3,3127.7,3.19722]
[1720716229502,1.10726704,3128.2,3127.7,3.19722]
[1720716229710,1.10726704,3128.1,3127.7,3.19722]
[1720716229905,1.10726704,3128.3,3127.7,3.19722]
[1720716230203,1.10726704,3128.2,3127.7,3.19722]
[1720716230416,1.10726704,3128.1,3127.7,3.19722]
[1720716230644,1.10726704,3128.0,3127.9,4.69703]
[1720716231240,1.10726704,3128.0,3127.9,7.10743]
[1720716231603,1.10726704,3128.0,3127.9,4.69703]
[1720716232338,3.0,3128.9,3127.9,4.69703]
[1720716232498,1.64716584,3128.8,3128.2,1.5]
[1720716232703,2.3998,3129.0,3127.9,3.2653094]
[1720716232704,3.0,3128.9,3128.4,1.5]
[1720716233016,2.3998,3129.0,3128.5,0.06798165]
[1720716233017,1.10715517,3128.8,3128.5,0.06798165]
[1720716233207,2.3998,3129.0,3128.2,4.69667]
[1720716233208,1.10715517,3128.7,3128.6,1.5]
[1720716233399,1.10715517,3128.7,3128.6,1.56795037]
[1720716235421,1.10698623,3128.7,3128.6,1.56795037]
[1720716235650,3.0,3129.4,3128.8,1.5]
[1720716235940,2.3629,3129.5,3128.8,1.5]
[1720716235941,1.64326166,3129.3,3128.8,1.5]
[1720716236108,1.10697166,3129.2,3128.9,0.06776082]
[1720716236311,1.10697166,3129.2,3129.0,1.5]
[1720716236553,1.10697166,3129.4,3128.9,0.06776082]
[1720716236847,1.10688239,3129.3,3129.2,1.5]
[1720716237000,1.10688239,3129.3,3129.0,1.56772343]
[1720716237208,1.10688239,3129.2,3129.0,1.56772343]
[1720716237419,1.10688239,3129.1,3129.0,1.56772343]
[1720716238913,2.3629,3129.5,3129.0,1.56772343]
[1720716239268,2.39850855,3129.4,3129.0,1.56772343]
[1720716239558,1.10690445,3129.3,3129.0,1.56772343]
[1720716239760,1.10690445,3129.2,3129.0,0.06772343]
[1720716240067,1.10690445,3129.1,3128.5,7.48]
[1720716240356,0.34698045,3129.3,3129.1,0.06766773]
[1720716240659,1.1070322,3129.2,3128.8,1.5]
[1720716240822,2.3629,3129.5,3128.8,1.5]
[1720716240823,1.1070322,3129.1,3128.8,1.5]
[1720716241020,1.1070322,3129.0,3128.8,1.5]
[1720716241220,1.1070322,3128.9,3128.8,1.5]
[1720716241450,1.1070322,3128.9,3128.5,7.48]
[1720716241617,1.10706733,3128.8,3128.5,7.48]
[1720716241827,1.10706733,3128.7,3128.6,4.6963]
[1720716242139,2.3629,3129.5,3128.8,1.5]
[1720716242350,1.10696418,3129.4,3128.8,1.5]
[1720716242565,1.10696418,3129.3,3129.0,1.5]
[1720716242731,1.10696418,3129.2,3129.0,1.5]
[1720716242932,1.10696418,3129.1,3129.0,1.5]
[1720716243455,5.3233,3129.9,3129.2,1.5]
[1720716243456,2.3233,3129.9,3129.2,1.5]
[1720716243623,1.33912767,3129.8,3129.2,1.5]
[1720716243957,1.10679767,3129.7,3129.2,1.5]
[1720716244117,1.10679767,3129.7,3129.4,1.5]
[1720716244516,0.23233,3129.8,3129.2,1.5]
[1720716244517,1.10681604,3129.6,3129.2,1.5]
[1720716244964,0.23233,3129.8,3129.2,1.5]
[1720716244965,1.84344263,3129.5,3129.2,1.5]
[1720716245247,1.84344263,3129.4,3129.2,1.5]
[1720716245474,1.84344263,3129.3,3129.0,1.5]
[1720716245794,0.73663164,3129.2,3129.0,1.5]
[1720716245948,0.23233,3129.8,3129.2,1.5]
[1720716246143,2.3233,3129.9,3129.2,1.5]
[1720716246144,1.8433233,3129.7,3129.2,1.5]
[1720716246390,1.8433233,3129.6,3129.2,1.5]
[1720716246588,1.8433233,3129.5,3129.2,1.5]
[1720716246762,0.23233,3129.8,3129.2,1.5]
[1720716246763,1.8433233,3129.4,3129.2,1.5]
[1720716247073,0.73656924,3129.3,3129.2,1.5]
[1720716247250,2.3233,3129.9,3129.2,1.5]
[1720716247451,1.84325094,3129.8,3129.4,1.5]
[1720716247651,1.84325094,3129.7,3129.4,1.5]
[1720716247847,1.84325094,3129.6,3129.5,0.06736955]
[1720716248564,0.73653854,3129.6,3129.5,0.06736955]
[1720716248765,5.3072,3130.4,3129.5,0.06736955]
[1720716248766,0.73653854,3130.3,3129.5,0.06736955]
[1720716248990,2.44746248,3130.2,3129.7,1.5]
[1720716249155,1.84308863,3130.1,3129.7,1.5]
[1720716249484,1.84308863,3130.0,3129.8,0.06727576]
[1720716249685,1.84308863,3129.9,3129.8,0.06727576]
[1720716249875,1.84308863,3129.9,3129.7,1.5]
[1720716250048,2.3072,3130.4,3130.0,1.5]
[1720716250379,1.84293404,3130.3,3130.0,1.5]
[1720716250591,1.84293404,3130.2,3130.1,0.06718199]
[1720716250953,1.84287945,3130.2,3130.1,0.06705173]
[1720716251149,0.73638962,3130.2,3130.0,1.5]
[1720716251353,2.4315,3130.7,3130.1,0.06705173]
[1720716251548,2.08597082,3130.6,3130.1,0.06705173]
[1720716251799,1.84282082,3130.5,3130.2,1.5]
[1720716252085,1.84280299,3130.4,3130.3,0.06698922]
[1720716252463,1.84280299,3130.4,3130.2,1.5]
[1720716252664,0.24315,3130.6,3130.3,0.06698922]
[1720716252853,1.84281437,3130.5,3130.3,0.06698922]
[1720716253054,0.73632765,3130.4,3130.0,1.5]
[1720716253285,2.4315,3130.7,3130.4,0.06695797]
[1720716253487,2.08591026,3130.6,3130.4,0.06695797]
[1720716253654,2.4315,3130.7,3130.2,1.5]
[1720716253655,1.84276026,3130.5,3130.2,1.5]
[1720716253849,5.3967,3131.0,3130.5,0.06692673]
[1720716254096,1.84263106,3130.9,3130.4,1.5]
[1720716254286,3.19318,3131.7,3130.3,0.06388592]
[1720716254287,1.84263106,3130.8,3130.6,1.56689548]
[1720716254588,2.3967,3131.3,3130.6,1.5]
[1720716254886,2.12368614,3131.2,3130.7,0.06656717]
[1720716255087,1.84243931,3131.1,3130.7,0.06656717]
[1720716255288,0.28124683,3131.2,3130.8,1.5]
[1720716255479,0.28124683,3131.2,3130.7,0.06656717]
[1720716255480,1.10627892,3131.1,3130.7,0.06656717]
[1720716255681,0.28124683,3131.2,3130.9,0.06650469]
[1720716255993,1.10628359,3131.1,3130.8,0.06653593]
[1720716256211,0.28124683,3131.2,3130.9,0.06650469]
[1720716256492,1.10629035,3131.1,3130.6,1.5]
[1720716256656,1.10629035,3131.1,3130.5,0.06387948]
[1720716256657,1.10629035,3131.1,3131.0,0.06647345]
[1720716256861,2.265,3132.4,3131.0,1.5]
[1720716256862,0.41576831,3131.9,3131.0,1.5]
[1720716257060,1.84226928,3131.8,3131.0,1.56620699]
[1720716257267,0.41576831,3131.9,3131.2,1.5]
[1720716257268,1.10620683,3131.7,3131.2,1.5]
[1720716257470,0.41576831,3131.9,3131.2,1.5]
[1720716257675,1.10608623,3131.8,3131.3,0.06611329]
[1720716257961,2.2894,3132.1,3131.4,1.5]
[1720716258174,1.10602571,3132.0,3131.4,1.5]
[1720716258372,2.54099,3132.1,3131.2,5.55981]
[1720716258373,1.10603762,3131.9,3131.5,0.06605084]
[1720716258571,1.10605279,3131.8,3131.2,1.5]
[1720716258784,0.41576831,3131.8,3131.2,1.5]
[1720716259090,0.41576831,3131.8,3131.4,1.5]
[1720716259398,2.54099,3132.1,3131.5,0.06605084]
[1720716259587,2.2894,3132.1,3131.5,0.06605084]
[1720716259991,1.106013,3132.0,3131.5,0.06605084]
[1720716260291,3.0,3132.0,3131.5,0.06605084]
[1720716261204,3.41576831,3132.0,3131.5,0.06605084]
[1720716261411,3.41576831,3132.0,3131.0,3.19381]
[1720716261630,3.98628514,3132.0,3131.2,1.5]
[1720716261975,3.98628514,3132.0,3131.3,0.06611329]
[1720716262200,1.10604926,3131.9,3131.3,0.06611329]
[1720716262409,3.98628514,3132.0,3131.3,0.06611329]
[1720716263211,3.41576831,3132.0,3131.3,0.06611329]
[1720716264908,2.2894,3132.1,3131.4,1.5]
[1720716265110,2.2894,3132.1,3131.4,1.56608206]
[1720716266774,3.19188,3133.0,3131.6,1.5]
[1720716266775,2.4146,3132.5,3131.6,1.5]
[1720716267016,1.1059647,3132.4,3131.7,0.06577489]
[1720716267201,3.65205647,3132.4,3131.8,1.5]
[1720716267388,3.0,3132.4,3131.7,0.06577489]
[1720716267582,3.0,3132.6,3131.9,0.06571245]
[1720716267777,3.0,3132.8,3131.8,0.06574367]
[1720716267992,1.10585715,3132.7,3132.0,1.5]
[1720716268218,1.10585715,3132.6,3132.0,1.5]
[1720716268527,3.0,3132.8,3131.6,3.19318]
[1720716268528,0.41576831,3132.7,3132.1,0.06551992]
[1720716268824,1.44747207,3132.6,3131.8,1.5]
[1720716269023,1.10589524,3132.5,3131.8,1.5]
[1720716269333,0.34157683,3132.6,3131.9,0.06553967]
[1720716269533,3.94677167,3132.5,3131.9,0.06553967]
[1720716269695,1.52167167,3132.4,3131.9,0.06553967]
[1720716270038,1.50058053,3132.3,3131.4,1.5]
[1720716270207,1.50058053,3132.3,3131.5,0.06564018]
[1720716270208,1.10590336,3132.2,3131.5,0.06564018]
[1720716270610,3.81044548,3132.3,3131.5,0.06564018]
[1720716270819,0.81044548,3132.3,3131.5,0.06564018]
[1720716271133,1.10601572,3132.2,3131.4,1.5]
[1720716271295,1.10601572,3132.2,3131.6,0.06560895]
[1720716271495,1.10601572,3132.2,3131.4,1.5]
[1720716271496,0.75006929,3132.2,3131.5,0.06564018]
[1720716271696,0.39467717,3132.3,3131.7,0.06557773]
[1720716272000,0.39467717,3132.3,3131.4,1.5]
[1720716272001,1.10599418,3132.2,3131.6,0.06560895]
[1720716272199,1.10599418,3132.1,3131.8,0.06554651]
[1720716272531,0.39467717,3132.3,3131.9,0.06551529]
[1720716272734,1.1059964,3132.2,3131.9,0.06551529]
[1720716273034,0.45006736,3132.2,3131.6,1.5]
[1720716273234,1.1059935,3132.1,3131.6,1.5]
[1720716273434,0.45006736,3132.2,3131.7,0.06557773]
[1720716273645,1.10597637,3132.1,3131.7,0.06557773]
[1720716273796,0.45006736,3132.2,3131.7,0.06557773]
[1720716274127,1.10598377,3132.1,3131.7,0.06557773]
[1720716274332,1.10601898,3132.0,3131.7,0.06557773]
[1720716274534,1.10601898,3132.0,3131.4,1.5]
[1720716274842,1.10603746,3131.9,3131.4,1.5]
[1720716275013,0.45006736,3132.2,3131.2,7.48]
[1720716275222,1.10606179,3132.1,3131.2,7.48]
[1720716275426,0.45006736,3132.2,3131.2,7.48]
[1720716275427,1.10606179,3132.0,3131.3,0.06567597]
[1720716275638,1.10606179,3132.1,3131.3,0.06567597]
[1720716275852,1.10606179,3132.0,3131.3,0.06567597]
[1720716276007,1.10606179,3132.1,3131.3,0.06567597]
[1720716277034,1.30114242,3132.1,3131.4,1.5]
[1720716277243,1.10606179,3132.0,3131.5,0.06561351]
[1720716277445,1.10606179,3131.9,3131.5,0.06561351]
[1720716277646,1.10606179,3131.8,3131.6,0.06558229]
[1720716277816,1.10606179,3131.7,3131.2,7.48]
[1720716278161,0.45006736,3132.2,3131.3,0.06567597]
[1720716278332,1.10602844,3132.1,3131.3,0.06567597]
[1720716278649,0.45006736,3132.2,3131.3,0.06567597]
[1720716278650,1.10602844,3132.0,3131.3,0.06567597]
[1720716278855,1.10602844,3131.9,3131.3,0.06567597]
[1720716279062,1.10602844,3131.8,3131.3,0.06567597]
[1720716279413,0.45006736,3132.2,3131.3,0.06567597]
[1720716279414,1.10602844,3131.7,3131.3,0.06567597]
[1720716279614,1.10602844,3131.6,3131.3,0.06567597]
[1720716279814,0.45006736,3132.2,3131.3,0.06567597]
[1720716280017,1.10604009,3132.1,3131.3,0.06567597]
[1720716280255,1.10604009,3132.0,3131.3,0.06567597]
[1720716280619,1.10604009,3132.0,3131.4,1.5]
[1720716280814,1.10604009,3132.0,3131.3,0.06567597]
[1720716281050,1.10604009,3132.0,3131.2,8.98]
[1720716281051,1.10604009,3132.0,3131.5,0.06560131]
[1720716281372,1.10604009,3132.0,3131.2,8.98]
[1720716281674,3.42715017,3131.9,3131.6,0.06557009]
[1720716281818,1.10605017,3131.8,3131.3,0.06566377]
[1720716282014,2.3211,3131.9,3131.3,0.06566377]
[1720716282015,1.10615321,3131.7,3131.3,0.06566377]
[1720716282265,1.10615321,3131.6,3131.3,0.06566377]
[1720716282560,1.10615321,3131.5,3131.3,0.06566377]
[1720716282762,1.10615321,3131.8,3131.3,0.06566377]
[1720716282947,1.44887853,3131.7,3131.3,0.06566377]
[1720716283118,1.10615321,3131.6,3131.3,0.06566377]
[1720716283519,1.10615321,3131.6,3130.7,9.7444]
[1720716283728,1.10615321,3131.6,3131.4,0.06563254]
[1720716284028,1.10615321,3131.6,3130.7,7.48]
[1720716284350,1.55104106,3131.6,3130.8,1.56446263]
[1720716284530,1.10615321,3131.5,3130.8,1.56446263]
[1720716284952,0.44488785,3131.6,3131.0,1.5]
[1720716284953,1.10623555,3131.4,3131.0,1.5]
[1720716285153,1.10623555,3131.3,3131.0,1.5]
[1720716285351,0.44488785,3131.6,3131.1,0.06436892]
[1720716285352,1.10623555,3131.5,3131.1,0.06436892]
[1720716285656,1.10623555,3131.4,3131.1,0.06436892]
[1720716285863,1.10623555,3131.3,3131.1,0.06436892]
[1720716286019,1.10623555,3131.2,3131.1,0.06436892]
[1720716287263,1.10623555,3131.2,3131.1,2.47276892]
[1720716287635,1.10623555,3131.2,3131.1,0.06436892]
[1720716288343,1.10622815,3131.2,3131.1,0.06436892]
[1720716290997,1.10622815,3131.2,3131.1,3.25812892]
[1720716291137,1.10622815,3131.2,3131.1,2.49566892]
[1720716291636,5.3334,3132.1,3131.1,2.49566892]
[1720716291842,2.37547968,3132.0,3131.2,1.5]
[1720716292054,3.53334,3132.0,3131.3,0.06435118]
[1720716292261,1.84215247,3131.9,3131.3,0.06435118]
[1720716292468,1.84215247,3131.9,3130.8,1.5]
[1720716292469,1.84215247,3131.8,3130.8,1.5]
[1720716292782,1.84215247,3131.7,3130.9,0.06447612]
[1720716292989,1.84215247,3131.6,3130.9,0.06447612]
[1720716293295,1.84215247,3131.5,3131.0,1.5]
[1720716293470,4.22685247,3131.4,3130.9,0.06447612]
[1720716293646,1.84215247,3131.3,3130.9,0.06447612]
[1720716293985,1.84215247,3131.2,3130.7,7.48]
[1720716294140,1.84215247,3131.1,3131.0,0.06444488]
[1720716294345,1.84215247,3131.1,3130.7,7.48]
[1720716294653,1.84250118,3131.0,3130.7,7.48]
[1720716294854,0.18425012,3130.9,3130.3,3.9897]
[1720716295063,1.10637604,3131.2,3130.3,1.5]
[1720716295661,1.10637604,3131.2,3130.5,1.5]
[1720716295877,1.10637604,3131.2,3130.8,1.5]
[1720716296048,4.10637604,3131.6,3130.8,1.5]
[1720716296241,1.10637604,3131.5,3130.8,1.5]
[1720716296545,1.10637604,3131.4,3130.8,1.5]
[1720716296743,1.10637604,3131.3,3131.0,1.5]
[1720716296941,1.10637604,3131.2,3131.0,1.5]
[1720716297144,3.6484276,3131.6,3130.8,1.5]
[1720716297145,1.10637604,3131.1,3130.8,1.5]
[1720716297376,1.10637604,3131.0,3130.8,1.5]
[1720716297577,1.10637604,3130.9,3130.8,1.5]
[1720716298287,3.6484276,3131.6,3130.8,1.5]
[1720716298582,1.7089093,3131.5,3130.8,1.5]
[1720716298791,1.10627654,3131.4,3130.8,1.5]
[1720716299086,0.60263276,3131.5,3130.6,2.4693]
[1720716299087,1.10627654,3131.3,3130.6,2.4693]
[1720716299291,1.10627654,3131.2,3130.6,2.4693]
[1720716299487,0.60263276,3131.5,3130.6,2.4693]
[1720716299488,1.46653982,3131.4,3130.6,2.4693]
[1720716299653,1.10627654,3131.3,3130.6,2.4693]
[1720716299854,1.10627654,3131.3,3130.7,1.5]
[1720716300574,1.10627654,3131.3,3131.0,1.5]
[1720716300788,5.18835021,3132.2,3130.9,3.19395]
[1720716300789,2.4194,3132.2,3131.2,1.5]
[1720716301092,1.10607963,3132.1,3131.4,1.5]
[1720716301289,1.10607963,3132.0,3131.4,1.5]
[1720716301492,2.4194,3132.2,3131.4,1.5]
[1720716301656,1.10606614,3132.1,3131.6,1.5]
[1720716301858,1.45861275,3132.0,3131.6,1.5]
[1720716302054,1.10606614,3131.9,3131.6,1.5]
[1720716302286,1.10606614,3131.8,3131.6,1.5]
[1720716302453,1.10606614,3131.7,3131.6,1.5]
[1720716304286,2.3213,3132.5,3131.7,1.5]
[1720716304451,2.3213,3132.5,3131.3,7.48]
[1720716304452,1.65594432,3132.4,3131.3,7.48]
[1720716304655,1.10594432,3132.3,3131.3,7.48]
[1720716304851,1.65594432,3132.2,3131.3,7.48]
[1720716305076,3.0,3132.3,3131.3,7.48]
[1720716305350,1.65608193,3132.2,3131.3,7.48]
[1720716305549,1.27169012,3132.1,3131.4,1.5]
[1720716305761,1.10608193,3132.0,3131.4,1.5]
[1720716305992,0.16560819,3132.1,3131.3,7.48]
[1720716305993,1.10608193,3131.9,3131.3,7.48]
[1720716306198,3.40548193,3131.8,3131.0,7.48]
[1720716306366,1.10608193,3131.7,3131.0,7.48]
[1720716306569,4.10608193,3131.7,3131.0,7.48]
[1720716306752,1.10608193,3131.6,3131.0,7.48]
[1720716306951,1.10608193,3131.5,3131.0,7.48]
[1720716307167,3.0,3131.7,3131.0,7.48]
[1720716307168,1.10608193,3131.6,3131.0,7.48]
[1720716307380,1.10608193,3131.4,3131.1,0.06436488]
[1720716307563,1.10632561,3131.3,3131.1,0.06436488]
[1720716307780,1.10632561,3131.2,3131.1,0.06436488]
[1720716307984,1.10632561,3131.4,3130.7,8.98]
[1720716308189,1.10632561,3131.3,3131.1,0.06436488]
[1720716308489,1.10632561,3131.2,3130.7,8.98]
[1720716308698,1.10632561,3131.1,3130.7,8.98]
[1720716308880,1.10632561,3131.0,3130.7,7.48]
[1720716309064,1.10632561,3130.9,3130.7,7.48]
[1720716309267,1.10632561,3130.8,3130.7,7.48]
[1720716310579,1.10632561,3130.8,3130.6,1.5]
[1720716310792,0.41060819,3131.5,3130.6,1.5]
[1720716311099,1.10637387,3131.4,3130.6,1.5]
[1720716311265,0.41060819,3131.5,3130.4,1.5]
[1720716311266,2.2705,3131.2,3130.4,1.5]
[1720716311457,1.44406126,3131.1,3130.4,1.5]
[1720716311782,1.10637387,3131.0,3130.4,1.5]
[1720716311991,0.33768739,3131.1,3130.2,8.98]
[1720716311992,1.10637387,3130.9,3130.2,8.98]
[1720716312159,1.10637387,3131.0,3130.2,7.48]
[1720716312358,1.55078,3130.9,3130.2,8.98]
[1720716312611,1.10637387,3130.8,3130.2,8.98]
[1720716312903,1.10637387,3130.8,3130.2,7.48]
[1720716313963,1.10637387,3130.8,3130.2,8.98]
[1720716314214,3.33768739,3131.1,3130.2,8.98]
[1720716314385,1.66724264,3131.0,3130.2,8.98]
[1720716314562,0.56081874,3131.0,3130.2,7.48]
[1720716314765,0.56081874,3131.0,3130.2,8.98]
[1720716314766,1.10648197,3130.9,3130.2,8.98]
[1720716315072,1.10648197,3130.8,3130.2,8.98]
[1720716315252,1.10648197,3130.7,3130.2,8.98]
[1720716315457,1.10648197,3130.6,3130.2,8.98]
[1720716315656,1.10648197,3130.5,3130.2,7.48]
[1720716315905,1.10648197,3130.5,3129.7,7.48]
[1720716315906,1.10648197,3130.4,3129.7,7.48]
[1720716316070,0.3448782,3130.3,3129.7,7.48]
[1720716316277,1.10648197,3130.2,3129.7,7.48]
[1720716317276,0.3448782,3130.3,3129.7,7.48]
[1720716317463,1.10678804,3130.1,3129.7,7.48]
[1720716317659,1.10678905,3130.0,3129.7,7.48]
[1720716317859,1.62814676,3130.0,3129.7,7.48]
[1720716318102,1.10678905,3129.9,3129.7,7.48]
[1720716318413,1.10678804,3130.1,3129.7,7.48]
[1720716318414,1.10678905,3129.8,3129.7,7.48]
[1720716318557,1.10678905,3130.0,3129.2,1.5]
[1720716318766,1.10678905,3130.0,3129.0,8.98]
[1720716320059,1.10678905,3130.0,3129.2,2.4456]
[1720716320298,1.10678905,3130.0,3129.5,4.69538]
[1720716320606,1.10678804,3130.1,3130.0,1.5]
[1720716320806,1.10678804,3130.1,3130.0,7.14048]
[1720716321104,1.10678804,3130.1,3130.0,10.33536]
[1720716321286,1.10678804,3130.1,3130.0,13.33536]
[1720716321985,1.10678804,3130.1,3130.0,10.14048]
[1720716322411,1.10678804,3130.1,3130.0,7.01077408]
[1720716322767,1.10678804,3130.1,3130.0,10.20565408]
[1720716323688,1.10678804,3130.1,3130.0,7.01077408]
[1720716325831,1.10678804,3130.1,3130.0,10.20565408]
[1720716326187,1.10678804,3130.1,3130.0,1.56517408]
[1720716326483,1.10678804,3130.1,3130.0,0.06517408]
[1720716326691,1.10678804,3130.1,3129.5,9.7315]
[1720716326923,1.10678804,3130.1,3129.6,1.56312819]
[1720716327161,1.10678804,3130.1,3129.6,0.06312819]
[1720716327162,1.10663599,3130.0,3129.6,0.06312819]
[1720716327365,0.2213424,3129.9,3129.6,0.06312819]
[1720716327562,1.10673848,3129.8,3129.6,0.06312819]
[1720716327718,1.10676858,3129.7,3129.6,0.06312819]
[1720716328622,1.10672953,3129.7,3129.6,0.06312819]
[1720716329966,1.10678804,3130.1,3129.6,0.06312819]
[1720716329967,1.10678804,3130.1,3129.9,1.5]
[1720716330351,1.10678804,3130.1,3130.0,0.06300315]
[1720716331437,1.10678804,3130.1,3130.0,1.56300315]
[1720716332191,1.10678804,3130.1,3130.0,0.06300315]
[1720716332359,2.21337305,3130.1,3130.0,0.06300315]
[1720716332557,2.21337305,3130.1,3129.8,1.5]
[1720716332802,1.10658501,3130.0,3129.8,1.5]
[1720716333101,1.10658501,3130.0,3129.5,7.48]
[1720716333549,1.10658501,3130.0,3129.6,1.5]
[1720716333745,1.10678804,3130.1,3129.6,1.5]
[1720716333746,1.10671074,3129.9,3129.6,1.5]
[1720716334002,1.10678804,3130.1,3129.6,1.5]
[1720716334003,1.10671074,3129.8,3129.6,1.5]
[1720716334148,1.10678804,3130.1,3129.6,1.5]
[1720716334356,1.10656815,3130.0,3129.6,4.69521]
[1720716334699,1.10678804,3130.1,3129.7,3.19519]
[1720716334993,1.10654569,3130.0,3129.9,1.5]
[1720716335298,1.10654569,3130.0,3129.7,1.5]
[1720716335451,1.10654569,3129.9,3129.7,1.5]
[1720716335647,1.10654569,3130.8,3129.7,1.5]
[1720716335851,1.51720026,3130.7,3129.9,1.5]
[1720716336090,1.10654569,3130.6,3129.9,1.5]
[1720716336466,1.10654569,3130.6,3129.5,7.48]
[1720716336661,2.454,3130.5,3129.6,1.5]
[1720716336920,1.10654569,3130.4,3129.6,1.5]
[1720716337077,1.10662437,3130.3,3129.6,1.5]
[1720716337277,1.10662437,3130.2,3129.7,0.06315184]
[1720716337497,1.10662437,3130.1,3129.7,0.06315184]
[1720716337825,1.10662437,3130.0,3129.7,0.06315184]
[1720716338032,1.10662437,3129.9,3129.7,0.06315184]
[1720716338191,1.38762983,3130.3,3129.7,0.06315184]
[1720716338514,1.10662437,3130.2,3129.8,0.06322632]
[1720716338717,1.10662437,3130.2,3129.5,8.98]
[1720716338921,1.10662437,3130.2,3129.6,0.06328884]
[1720716339093,1.54538735,3130.2,3129.6,0.06328884]
[1720716339419,1.10662437,3130.1,3129.6,0.06328884]
[1720716339919,1.10662437,3130.2,3129.7,1.5]
[1720716340121,0.28100546,3130.3,3129.8,0.06322632]
[1720716340122,1.10662437,3130.1,3129.8,0.06322632]
[1720716340414,0.28100546,3130.3,3129.5,7.48]
[1720716340577,1.43487603,3130.2,3129.9,0.06319506]
[1720716340779,1.43487603,3130.2,3129.5,7.48]
[1720716340780,0.32810055,3130.2,3129.5,7.48]
[1720716341097,1.10676162,3130.1,3129.5,7.48]
[1720716341299,1.10676162,3130.0,3129.6,0.06328884]
[1720716341611,1.10676162,3129.9,3129.6,0.06328884]
[1720716341775,1.10676162,3130.1,3129.6,0.06328884]
[1720716341981,1.27834838,3130.1,3129.6,0.06328884]
[1720716342175,1.10676162,3130.0,3129.6,0.06328884]
[1720716343229,2.3757,3129.9,3129.6,0.06328884]
[1720716343429,1.10676162,3129.8,3129.6,0.06328884]
[1720716343593,1.10678799,3129.7,3129.3,13.79]
[1720716343798,1.10678899,3129.6,3129.3,13.79]
[1720716344014,0.32810055,3130.2,3129.3,13.79]
[1720716344015,1.10678899,3129.5,3129.3,13.79]
[1720716344329,0.32810055,3130.2,3129.3,13.79]
[1720716344330,1.10678899,3129.4,3129.3,13.79]
[1720716344482,1.10678899,3129.4,3129.3,1.5]
[1720716346089,1.10678899,3129.4,3129.1,1.5]
[1720716346292,1.10678899,3129.3,3129.1,1.5]
[1720716346622,1.10678899,3129.6,3129.1,1.5]
[1720716346821,1.10678899,3129.5,3129.1,1.5]
[1720716347331,1.10694854,3129.4,3129.1,1.5]
[1720716347531,1.10694854,3129.3,3129.1,1.5]
[1720716347827,1.10694854,3129.2,3129.1,1.5]
[1720716350395,3.0,3130.2,3129.1,1.5]
[1720716350728,1.10669556,3130.1,3129.9,1.5]
[1720716350937,2.4732,3130.5,3129.9,1.5]
[1720716351222,1.10662491,3130.4,3129.9,1.5]
[1720716352125,1.10662491,3130.4,3129.6,1.5]
[1720716352470,1.10662491,3130.4,3129.7,0.0634997]
[1720716352765,1.4646074,3130.4,3129.7,0.0634997]
[1720716352968,1.10662491,3130.3,3129.7,0.0634997]
[1720716353353,2.433,3130.2,3129.7,0.0634997]
[1720716353523,1.10679259,3130.1,3129.4,7.48]
[1720716353832,1.1068019,3130.0,3129.5,0.06356223]
[1720716354171,1.1068019,3129.9,3129.5,0.06356223]